Cogmind - Beta 16 @@@ ROGUE MODE // 2025.11.13 @ 04:15:33 Player: shapeshifter Result: Destroyed by Enhanced Grunt with Neutron Cannon Performance ------------- Evolutions (3) 1500 Regions Visited (9) 1800 Robots Destroyed (47) 235 Value Destroyed (1549) 1549 Prototype IDs (39) 780 Alien Tech Used (0) 0 Bonus (626) 626 TOTAL SCORE: 6490 Bonus ------- Follower Combat Kills 33 Aligned with FarCom 300 Met Data Miner 300 Friendly Fire -7 Cogmind --------- Core Integrity 0/700 Matter 136/300 Energy 8/100 System Corruption 2% Temperature Cool (0) Movement Core (150) Ox2 Location -7/Data Miner Parts ------- > --- POWER (1) -------- (None) > --- PROPULSION (3) --- (None) > --- UTILITY (6) ------ Enhanced Optical Array Hacking Suite Hacking Suite System Mapper > --- WEAPON (3) ------- Improved EM Pulse Cannon > --- INVENTORY (5) ---- Layered Medium Armor Plating PSU Rigger Improved EM Pulse Cannon Improved EM Pulse Cannon Peak State ------------ > --- POWER ------------ Deuterium Engine > --- PROPULSION ------- Armored Treads Armored Huge Wheel > --- UTILITY ---------- High-capacity Storage Unit Improved Signal Interpreter Makeshift Terrain Scan Processor Improved Medium Armor Plating Hacking Suite Thief Drone Bay > --- WEAPON ----------- Heavy Particle Gun Advanced Beam Cannon > --- INVENTORY -------- Deuterium Engine Improved Deuterium Engine Cloak of Protection Improved Utility Shielding Hacking Suite Hacking Suite High-powered Tractor Beam PSU Rigger Chronowheel Field Laser Improved EM Pulse Cannon Improved EM Pulse Cannon Improved EM Pulse Cannon Improved EM Pulse Cannon Advanced Beam Cannon Advanced Beam Cannon Remote Datajack Plasma Cutter Makeshift Axe [Rating: 51] Favorites ----------- Power Light Ion Engine Engine Light Ion Engine Power Core Light Nuclear Core Propulsion Improved Treads Treads Improved Treads Wheel Armored Huge Wheel Hover Unit Gravmag Array Utility Hardened Light Armor Plating Device Improved Heat Sink Storage High-capacity Storage Unit Processor Improved Signal Interpreter Hackware Hacking Suite Protection Hardened Light Armor Plating Weapon Light Assault Rifle Energy Gun Heavy Particle Gun Energy Cannon Advanced Beam Cannon Ballistic Gun Light Assault Rifle Launcher Improved Grenade Launcher Slashing Weapon Makeshift Axe Build | -11 -10 -10 -10 -9 -8 -7 -7 -7 -7 ------- Run | Yrd Mat Min Exi Min Mat Fac Low Low Dat Slots Evolved 6 | . . . . . 4 2 . . . Power . | . . . . . . . . . . Propulsion 1 | . . . . . 1 . . . . Utility 4 | . . . . . 2 2 . . . Weapon 1 | . . . . . 1 . . . . Parts Attached 69 | 7 6 6 2 3 22 2 . 16 5 Power 6 | 1 . 1 . 1 2 . . . 1 Engine 5 | 1 . . . 1 2 . . . 1 Core 1 | . . 1 . . . . . . . Reactor . | . . . . . . . . . . Propulsion 14 | 2 2 2 . . 5 . . 2 1 Treads 12 | 2 2 2 . . 5 . . 1 . Leg . | . . . . . . . . . . Wheel 1 | . . . . . . . . 1 . Hover 1 | . . . . . . . . . 1 Flight . | . . . . . . . . . . Utility 25 | 2 3 . 1 1 8 2 . 7 1 Device 8 | 1 . . . 1 4 1 . 1 . Storage 3 | 1 1 . . . 1 . . . . Processor 5 | . 1 . . . 1 1 . 2 . Hackware 4 | . . . . . 1 . . 2 1 Protection 5 | . 1 . 1 . 1 . . 2 . Artifact . | . . . . . . . . . . Weapon 24 | 2 1 3 1 1 7 . . 7 2 Energy Gun 5 | . 1 1 . . 3 . . . . Energy Cannon 9 | . . . . . 3 . . 5 1 Ballistic Gun 6 | 2 . 2 1 1 . . . . . Ballistic Cannon . | . . . . . . . . . . Launcher 3 | . . . . . 1 . . 2 . Special Weapon . | . . . . . . . . . . Impact Weapon . | . . . . . . . . . . Slashing Weapon 1 | . . . . . . . . . 1 Piercing Weapon . | . . . . . . . . . . Special Melee Weapon . | . . . . . . . . . . Unidentified Prototypes 6 | . . . . 1 3 . . . 2 Corrupted Parts 1 | . . . . . . . . 1 . System Corruption 2 | . . . . . . . . 2 . Parts Lost 21 | . . 2 . . . . . 15 4 Power 2 | . . . . . . . . 1 1 Propulsion 6 | . . 1 . . . . . 4 1 Utility 7 | . . . . . . . . 7 . Weapon 6 | . . 1 . . . . . 3 2 Highest Loss Streak 5 | . . 1 . . . . . 5 4 To Critical Strikes . | . . . . . . . . . . Average Backups 14 | 4 8 14 14 14 18 20 20 16 11 Power . | . . 1 . . 1 2 2 1 . Propulsion . | 1 2 1 . . . . . . . Utility 7 | . 4 8 11 12 8 7 6 5 3 Weapon 4 | 1 1 2 2 1 5 8 8 6 5 Tool/Special . | . . . . . . . . . . Unused Backups 25 | . 3 . 1 1 7 1 . 2 10 Power 3 | . 1 . . . . . . . 2 Propulsion 2 | . 2 . . . . . . . . Utility 13 | . . . 1 1 5 . . 1 5 Weapon 1 | . . . . . 1 . . . . Tool/Special 6 | . . . . . 1 1 . 1 3 Average Slot Usage (%) 86 | . 100 99 100 100 97 90 100 66 38 Engine 7 | . 14 11 . 10 9 7 7 4 . Core 1 | . . 2 14 3 . . . . . Treads 20 | . 28 27 28 28 26 23 23 6 . Device 3 | . 2 . . . 7 10 15 1 1 Storage 10 | . 14 14 14 14 9 7 7 6 4 Processor 3 | . . . . . 1 3 7 9 7 Hackware 5 | . . . . . 8 7 7 9 15 Protection 8 | . 11 14 14 14 9 7 7 3 . Energy Gun 7 | . 13 5 . . 17 7 7 4 . Energy Cannon 5 | . . . . . 5 15 15 13 . Ballistic Gun 10 | . 14 22 28 28 2 . . . . Peak Build Rating 51 | 7 12 14 17 22 35 41 41 51 51 Average Rating 23 | 4 10 12 14 17 31 37 41 33 25 On Entrance 21 | . 7 12 14 17 18 35 41 41 33 Avg Prop Armor Cover (%) 8 | . . . . . . . . 8 . Naked Turns 17 | . . . . . . . . 17 . Heaviest Build 69 | 12 32 32 32 32 64 65 65 69 43 Greatest Support 65 | 40 46 46 46 46 65 65 65 65 20 Greatest Overweight (x) 20 | . . 1 . . 1 . . 20 14 Average Overweight (x) . | . . . . . . . . 3 2 Largest Inventory Capacity 20 | 8 15 15 15 15 20 20 20 20 20 Average Capacity 16 | 7 12 15 15 15 18 20 20 18 14 Most Carried 20 | 7 14 15 15 15 20 20 20 20 20 Average Carried 14 | 4 8 14 14 14 18 20 20 16 12 Final Capacity 20 | 8 15 15 15 15 20 20 20 20 5 Final Carried 20 | 6 14 14 15 14 20 20 20 18 4 Class Distribution -------------------- 48% | Mutant 22% | Scavenger-Skirmisher 7% | Hacker-Mutant 7% | Hacker-Skirmisher 5% | Tank 4% | Gunner Dominant Class ---------------- Mutant | -10/Materials Mutant | -10/Mines Mutant | -10/Exiles Mutant | -9/Mines Scavenger-Skirmisher | -8/Materials Scavenger-Tank | -7/Factory Scavenger-Skirmisher | -7/Lower Caves Hacker-Skirmisher | -7/Lower Caves Hacker-Mutant | -7/Data Miner Resources | -11 -10 -10 -10 -9 -8 -7 -7 -7 -7 ----------- Run | Yrd Mat Min Exi Min Mat Fac Low Low Dat Matter Collected 1307 | 302 111 127 35 129 270 . 30 279 24 Remotely . | . . . . . . . . . . Salvage Created 1941 | 107 218 207 . 141 359 . 243 642 24 Parts 101 | 12 13 8 . 7 21 . 7 30 3 Haulers Intercepted 1 | . . . . . 1 . . . . Recyclers Shooed 2 | . 1 1 . . . . . . . Parts Field Recycled . | . . . . . . . . . . Retrieved Matter . | . . . . . . . . . . Parts Self-Destructed 32 | . . . . . . . 7 25 . Prevented 1 | . . . . . . . . 1 . Parts Restored . | . . . . . . . . . . Kills | -11 -10 -10 -10 -9 -8 -7 -7 -7 -7 ------- Run | Yrd Mat Min Exi Min Mat Fac Low Low Dat Combat Hostiles Destroyed 38 | . 3 6 . 4 5 . 4 16 . Guns 18 | . 2 6 . 4 5 . . 1 . Cannons 9 | . . . . . . . 2 7 . AOE 8 | . 1 . . . . . . 7 . Classes Destroyed 13 | 2 3 . . 1 3 . 1 3 . Tunneler 2 | 2 . . . . . . . . . Hauler 1 | . . . . . 1 . . . . Recycler 2 | 1 1 . . . . . . . . Operator 3 | . 1 . . . 2 . . . . Watcher 1 | . . . . . 1 . . . . Swarmer 10 | . 1 2 . . . . . 7 . Grunt 18 | . 2 4 . 3 2 . 2 5 . Brawler 2 | . . . . . . . 1 1 . Duelist 1 | . . . . . . . . 1 . Sentry 4 | . . . . . 3 . 1 . . Behemoth 1 | . . . . . . . . 1 . Master Thief 1 | . . . . . . . . 1 . Assembled 1 | . . . . 1 . . . . . Best Kill Streak 10 | 3 2 2 . 2 2 . 4 10 1 Combat Bots Only 10 | . 1 2 . 2 2 . 4 10 . Max Kills in Single Turn 2 | 1 1 1 . 1 1 . 1 2 1 Gunslinging . | . . . . . . . . . . Exploded 2 | . 1 . . . . . . 2 . Melee . | . . . . . . . . . . Uniques/NPCs Destroyed 1 | . . . . . . . . . 1 Data Miner (-7/Data Miner) Combat | -11 -10 -10 -10 -9 -8 -7 -7 -7 -7 -------- Run | Yrd Mat Min Exi Min Mat Fac Low Low Dat Hostile Shots Fired 335 | . 14 68 . 26 28 . 22 151 26 Missed 91 | . 1 17 . 4 9 . 7 41 12 Hits 244 | . 13 51 . 22 19 . 15 110 14 Melee 14 | . . . . 4 . . . 10 . Projectile 230 | . 13 51 . 18 19 . 15 100 14 Critical Strikes 8 | . . 2 . 2 3 . . 1 . Damage Taken 4529 | . 219 589 . 347 300 . 148 2187 739 Core 934 | . 31 99 . 66 29 . . 408 301 Absorbed by Shields . | . . . . . . . . . . Core Remaining (%) 71 | 100 . . . 21 94 . . . . Volleys Fired 199 | 8 17 40 . 22 20 1 6 78 7 Largest 3 | 2 2 2 . 2 3 1 3 3 1 Hottest 191 | 40 60 60 . 40 186 68 191 191 90 Shots Fired 363 | 16 34 80 . 44 44 1 18 119 7 Gun 265 | 16 34 80 . 44 39 . 6 46 . Cannon 89 | . . . . . 3 1 12 66 7 Launcher 9 | . . . . . 2 . . 7 . Special . | . . . . . . . . . . Kinetic 145 | 16 17 60 . 44 8 . . . . Thermal 189 | . . 19 . . 34 1 18 112 5 Explosive 9 | . . . . . 2 . . 7 . Electromagnetic 20 | . 17 1 . . . . . . 2 Robot Hit Streak 17 | 6 7 7 . 17 9 . 10 12 3 Robot Miss Streak 5 | 1 3 3 . 2 3 . 2 5 2 Penetration Max . | . . . . . . . . . . Secondary Targets 1 | . . 1 . . . . . . . Max Gunslinging Chain 1 | . . 1 . . . . . . . Shots Hit Robots 237 | 11 21 46 . 33 24 . 13 79 10 Core Hits 95 | 5 10 17 . 12 14 . 6 28 3 Critical Kills 4 | . . . . 1 . . 2 1 . Critical Parts Destroyed . | . . . . . . . . . . Critical Strikes 8 | . . . . 1 . . 3 2 2 Burn 2 | . . . . . . . 1 1 . Meltdown 3 | . . . . . . . 2 1 . Destroy 1 | . . . . 1 . . . . . Sever 2 | . . . . . . . . . 2 Melee Attacks 31 | . . . . . . . . . 31 Impact . | . . . . . . . . . . Slashing 31 | . . . . . . . . . 31 Piercing . | . . . . . . . . . . Sneak Attacks 1 | . . . . . . . . . 1 Combat Hostiles . | . . . . . . . . . . Follow-up Attacks . | . . . . . . . . . . Damage Inflicted 4551 | 112 372 491 . 279 481 . 257 2155 404 Guns 2267 | 112 306 491 . 279 374 . 50 655 . Cannons 1342 | . . . . . 61 . 207 986 88 Explosions 679 | . 66 . . . 46 . . 514 53 Melee 263 | . . . . . . . . . 263 Ramming . | . . . . . . . . . . Kinetic 950 | 112 189 337 . 279 33 . . . . Thermal 2612 | . 66 142 . . 402 . 257 1641 104 Explosive 560 | . . . . . 46 . . 514 . Electromagnetic 166 | . 117 12 . . . . . . 37 Impact . | . . . . . . . . . . Slashing 263 | . . . . . . . . . 263 Piercing . | . . . . . . . . . . Highest Corruption 2 | . . . . . . . . 2 2 Average Corruption 2 | . . . . . . . . 2 2 Corruption Purged . | . . . . . . . . . . Corruption Blocked . | . . . . . . . . . . Effects 28 | . . . . . . . . 17 11 Message Errors 7 | . . . . . . . . 3 4 Matter Fused 7 | . . . . . . . . 3 4 Heat Flow Errors 4 | . . . . . . . . 3 1 Energy Discharges 3 | . . . . . . . . 3 . Parts Rejected 1 | . . . . . . . . 1 . Data Loss (minor) 3 | . . . . . . . . 2 1 Data Loss (major) 1 | . . . . . . . . . 1 Alerts 2 | . . . . . . . . 2 . Overload Shots . | . . . . . . . . . . Overflow Damage 69 | . . . . . 36 . . 33 . Projectiles 29 | . . . . . . . . 29 . Explosions 40 | . . . . . 36 . . 4 . Melee . | . . . . . . . . . . Knockbacks . | . . . . . . . . . . Impact . | . . . . . . . . . . Kinetic . | . . . . . . . . . . Secondary . | . . . . . . . . . . Self-Inflicted Damage 207 | . 13 . . . . . . 107 87 Shots 4 | . 1 . . . . . . 2 1 Rammed . | . . . . . . . . . . Targets Rammed . | . . . . . . . . . . Kicked . | . . . . . . . . . . Crushed . | . . . . . . . . . . Highest Temperature 340 | . 84 196 . 211 252 . 168 340 125 Average Temperature 101 | . 39 82 . 72 100 . 76 142 57 Received Heat Transfer 975 | . 72 273 . 147 162 . 60 261 . Effects 4 | . . . . . 1 . . 3 . Energy Bleed 3 | . . . . . 1 . . 2 . Matter Decay 1 | . . . . . . . . 1 . Siege Activations . | . . . . . . . . . . Martial Activations . | . . . . . . . . . . Shielding Activations . | . . . . . . . . . . Robots Disrupted . | . . . . . . . . . . Combat Hostiles . | . . . . . . . . . . Robots Corrupted . | . . . . . . . . . . Combat Hostiles . | . . . . . . . . . . Parts Fried . | . . . . . . . . . . Impact Corruptions . | . . . . . . . . . . Robots Melted 3 | . . . . . . . 2 1 . Combat Hostiles 3 | . . . . . . . 2 1 . Parts Melted 12 | . . . . . 3 . 4 5 . Heat Transferred 4878 | . 100 325 . . 814 . 555 3034 50 Parts Sabotaged . | . . . . . . . . . . Parts Stolen 6 | . . . . . . . . 6 . Parts Stripped . | . . . . . . . . . . Power Chain Reactions 2 | . 1 . . . . . . . 1 Alert | -11 -10 -10 -10 -9 -8 -7 -7 -7 -7 ------- Run | Yrd Mat Min Exi Min Mat Fac Low Low Dat Maximum Alert Level . | . . . . . . . . . . Low Security (%) 100 | 100 100 100 . 100 100 100 . . . Level 1 . | . . . . . . . . . . Level 2 . | . . . . . . . . . . Level 3 . | . . . . . . . . . . Level 4 . | . . . . . . . . . . Level 5 . | . . . . . . . . . . High Security . | . . . . . . . . . . Max Security . | . . . . . . . . . . Peak Influence 51 | 10 32 41 . 50 51 15 . . . Initial 11 | . . 11 . . . . . . . Average 5 | 1 3 6 . 5 8 1 . . . Influence Increases 1118 | 15 138 140 . 70 245 15 90 385 20 Destroy 0b10 Robot/C 760 | . 60 120 . 60 120 . 80 300 20 Destroy 0b10 Robot/NC 50 | 15 10 . . . 20 . . 5 . Destroy Leader 164 | . 20 20 . 10 54 . 10 50 . Allied During Kill 2 | . . . . . 2 . . . . Successful Hack 31 | . 16 . . . 15 . . . . Select Force Hacks 30 | . 30 . . . . . . . . Disable Machine 30 | . . . . . 15 15 . . . Destroy Structure 21 | . 2 . . . 19 . . . . Lose Combat Pursuer 30 | . . . . . . . . 30 . Influence Decreases 1118 | 15 108 170 . 70 245 15 50 425 20 Entered New Map 27 | . . 19 . . . . . 8 . Time Decay 973 | 15 108 131 . 70 245 15 50 331 8 Lost Part 106 | . . 20 . . . . . 86 . Lost Ally 12 | . . . . . . . . . 12 Squads Dispatched 10 | . 2 1 . . 6 1 . . . Investigation 5 | . 1 1 . . 3 . . . . Extermination 1 | . . . . . . 1 . . . Reinforcement 4 | . 1 . . . 3 . . . . Assault . | . . . . . . . . . . Garrison . | . . . . . . . . . . Intercept . | . . . . . . . . . . Searches Triggered . | . . . . . . . . . . Construction Impeded . | . . . . . . . . . . Haulers Reinforced . | . . . . . . . . . . Active Scanning Responses . | . . . . . . . . . . Cargo Convoy Interrupts . | . . . . . . . . . . Stealth | -11 -10 -10 -10 -9 -8 -7 -7 -7 -7 --------- Run | Yrd Mat Min Exi Min Mat Fac Low Low Dat Distress Signals 5 | . 2 . . . 3 . . . . Communications Jammed . | . . . . . . . . . . Distress Signals . | . . . . . . . . . . Times Spotted 55 | . 6 8 . 6 9 . 4 19 3 Peak Tracking Total 5 | . 2 3 . 3 2 . 4 5 3 Tactical Retreats 1 | . . . . . . . . 1 . Traps | -11 -10 -10 -10 -9 -8 -7 -7 -7 -7 ------- Run | Yrd Mat Min Exi Min Mat Fac Low Low Dat Traps Triggered 5 | . 4 . . . 1 . . . . Indirectly . | . . . . . . . . . . Trap Hack Attempts . | . . . . . . . . . . Triggered . | . . . . . . . . . . Disarmed . | . . . . . . . . . . Reprogrammed . | . . . . . . . . . . Reused . | . . . . . . . . . . Traps Extracted . | . . . . . . . . . . Installed . | . . . . . . . . . . Triggered . | . . . . . . . . . . Machines | -11 -10 -10 -10 -9 -8 -7 -7 -7 -7 ---------- Run | Yrd Mat Min Exi Min Mat Fac Low Low Dat Machines Disabled 3 | . . . . . 1 1 . . 1 Max in Single Turn 1 | . . . . . 1 1 . . 1 Machines Repaired . | . . . . . . . . . . Machines Dismantled . | . . . . . . . . . . Machines Sabotaged . | . . . . . . . . . . Overloaded Fab Kills . | . . . . . . . . . . Hacking | -11 -10 -10 -10 -9 -8 -7 -7 -7 -7 --------- Run | Yrd Mat Min Exi Min Mat Fac Low Low Dat Machines Accessed 25 | . 8 1 2 1 7 2 . . 4 Terminals 13 | . 7 . . . 5 1 . . . Fabricators 1 | . . . . . . 1 . . . Repair Stations . | . . . . . . . . . . Recycling Units 2 | . 1 . . . 1 . . . . Scanalyzers 1 | . . . . . 1 . . . . Garrison Access . | . . . . . . . . . . Total Hacks 78 | . 20 1 2 1 19 3 . . 32 Successful 55 | . 12 1 2 1 7 . . . 32 Failed 22 | . 8 . . . 11 3 . . . Catastrophic 3 | . 1 . . . 1 1 . . . Database Lockouts 1 | . . . . . 1 . . . . Manual 33 | . 19 . 1 . 13 . . . . Terminals 33 | . 17 . . . 15 1 . . . Fabricators 2 | . . . . . . 2 . . . Repair Stations . | . . . . . . . . . . Recycling Units 5 | . 3 . . . 2 . . . . Scanalyzers 2 | . . . . . 2 . . . . Garrison Access . | . . . . . . . . . . Terminal Hacks 41 | . 5 1 2 1 . . . . 32 Record 12 | . . . 1 . . . . . 11 Part Schematic 13 | . . . . . . . . . 13 Robot Schematic 5 | . . . . . . . . . 5 Prototype ID Bank 3 | . . . . . . . . . 3 Open Door 2 | . . 1 . 1 . . . . . Terminal Index 1 | . 1 . . . . . . . . Zone Layout 4 | . 4 . . . . . . . . Proto ID Catalog 1 | . . . 1 . . . . . . Fabricator Hacks . | . . . . . . . . . . Repair Station Hacks . | . . . . . . . . . . Recycling Unit Hacks 1 | . 1 . . . . . . . . Retrieve Components 1 | . 1 . . . . . . . . Scanalyzer 1 | . . . . . 1 . . . . Retrieve Study 1 | . . . . . 1 . . . . Garrison Access Hacks . | . . . . . . . . . . Unauthorized Hacks 12 | . 6 . . . 6 . . . . Terminals 11 | . 5 . . . 6 . . . . Assimilate 1 | . . . . . 1 . . . . Skim 10 | . 5 . . . 5 . . . . Fabricators . | . . . . . . . . . . Repair Stations . | . . . . . . . . . . Recycling Units 1 | . 1 . . . . . . . . Tunnel 1 | . 1 . . . . . . . . Scanalyzers . | . . . . . . . . . . Garrison Access . | . . . . . . . . . . Data Cores Recovered 1 | . . . . . 1 . . . . Used . | . . . . . . . . . . Hacking Detections 11 | . 5 . . . 4 2 . . . Full Trace Events . | . . . . . . . . . . Feedback Events . | . . . . . . . . . . Feedback Blocked . | . . . . . . . . . . Robot Schematics Acquired 5 | . . . . . . . . . 5 Robots Built . | . . . . . . . . . . Authchips . | . . . . . . . . . . Time . | . . . . . . . . . . Total Robot Build Rating . | . . . . . . . . . . Part Schematics Acquired 13 | . . . . . . . . . 13 Parts Built . | . . . . . . . . . . Authchips . | . . . . . . . . . . Time . | . . . . . . . . . . Total Part Build Rating . | . . . . . . . . . . Part Studies Acquired 1 | . . . . . 1 . . . . Parts Repaired . | . . . . . . . . . . Time . | . . . . . . . . . . Parts Recycled . | . . . . . . . . . . Recycled Matter . | . . . . . . . . . . Retrieved Matter . | . . . . . . . . . . Retrieved Components 10 | . 10 . . . . . . . . Parts Scanalyzed . | . . . . . . . . . . Part Schematics Acquired . | . . . . . . . . . . Parts Damaged . | . . . . . . . . . . Bothacking | -11 -10 -10 -10 -9 -8 -7 -7 -7 -7 ------------ Run | Yrd Mat Min Exi Min Mat Fac Low Low Dat Used RIF Installer . | . . . . . . . . . . Robots Hacked . | . . . . . . . . . . Non-combat . | . . . . . . . . . . Combat . | . . . . . . . . . . Robot Hacks Applied . | . . . . . . . . . . Relay Couplers Released . | . . . . . . . . . . Fabnet Peak Effective % . | . . . . . . . . . . Robots Rewired . | . . . . . . . . . . Allies Hacked . | . . . . . . . . . . Hacks Repelled . | . . . . . . . . . . Allies | -11 -10 -10 -10 -9 -8 -7 -7 -7 -7 -------- Run | Yrd Mat Min Exi Min Mat Fac Low Low Dat Total Allies 2 | . . . . 2 . . . . . Largest Group 2 | . . . . 2 1 . . . . Highest-Rated Group 49 | . . . . 49 31 . . . . Highest-Rated Ally 31 | . . . . 31 31 . . . . Total Orders . | . . . . . . . . . . Ally Attacks 30 | . . . . 13 12 . . 3 2 Total Damage 360 | . . . . 149 168 . . 38 5 Kills 4 | . . . . 3 1 . . . . Allies Corrupted . | . . . . . . . . . . Allies Melted 1 | . . . . . . . . 1 . Intel | -11 -10 -10 -10 -9 -8 -7 -7 -7 -7 ------- Run | Yrd Mat Min Exi Min Mat Fac Low Low Dat Active Infowar (turns) 1859 | 11 187 . . . 1 94 317 679 570 Optics 1066 | . . . . . . . . 496 570 Sensors 594 | . . . . . . 94 317 183 . Seismic 199 | 11 187 . . . 1 . . . . Robot Analysis Total . | . . . . . . . . . . Derelict Logs Recovered 4 | . . 2 . . . . 1 1 . Drone Launches 4 | . . . . . . . . 3 1 Drone Recoveries 1 | . . . . . . . . 1 . Exploration | -11 -10 -10 -10 -9 -8 -7 -7 -7 -7 ------------- Run | Yrd Mat Min Exi Min Mat Fac Low Low Dat Turns Passed 7131 | 119 1115 746 614 631 1203 222 317 1594 570 Spaces Moved 2969 | 58 437 381 369 334 464 125 190 395 216 Core 265 | 14 . . . . . . . 85 166 Treads 2581 | 44 437 381 369 334 464 125 190 237 . Legs . | . . . . . . . . . . Wheels 73 | . . . . . . . . 73 . Hover 50 | . . . . . . . . . 50 Flight . | . . . . . . . . . . Fastest Speed 50 | 50 160 160 160 160 155 155 155 50 50 Average Speed 182 | 133 160 161 160 160 158 155 155 317 201 Slowest Speed 1050 | 160 160 240 160 160 226 155 155 1050 750 Overloaded Moves . | . . . . . . . . . . Propulsion Burnouts . | . . . . . . . . . . Robots Hopped . | . . . . . . . . . . Potential Cave-ins . | . . . . . . . . . . Cave-ins Triggered . | . . . . . . . . . . Exploration Rate (%) 54 | 5 78 87 68 80 41 6 41 60 81 Regions Visited 9 Branch Regions 6 Pre-discovered Areas 6 | . 1 1 1 . 2 . . . 1 Known Exits Taken 6 | . 1 . 1 . 1 1 1 1 . Unknown Exits Taken 3 | 1 . 1 . 1 . . . . . Scrap Searched 5 | . . 1 . . . . 1 3 . Spaces Dug 17 | . . . . . 6 . . 11 . Terrain Destroyed 88 | . 2 . . . 18 . . 68 . Melee . | . . . . . . . . . . Projectile . | . . . . . . . . . . AOE 88 | . 2 . . . 18 . . 68 . Terrain Rammed . | . . . . . . . . . . Walls Destroyed . | . . . . . . . . . . Machines Disabled . | . . . . . . . . . . Actions | -11 -10 -10 -10 -9 -8 -7 -7 -7 -7 --------- Run | Yrd Mat Min Exi Min Mat Fac Low Low Dat Total 4347 | 85 823 441 394 396 906 153 200 632 317 Wait 848 | . 336 7 15 34 342 24 3 71 16 Move 2960 | 57 436 380 368 333 463 124 189 394 216 Hop . | . . . . . . . . . . Pick Up 136 | 13 17 4 5 1 28 1 1 41 25 Fast Attach 23 | . . . . . 4 2 . 11 6 Attach 37 | 7 2 3 . 1 9 . . 13 2 Detach 10 | . . . . . 3 . . 5 2 Swap 28 | . 4 3 2 3 12 . . 4 . Drop 75 | . 11 4 4 2 25 1 1 15 12 Fire 199 | 8 17 40 . 22 20 1 6 78 7 Melee 31 | . . . . . . . . . 31 Ram . | . . . . . . . . . . Kick . | . . . . . . . . . . Crush . | . . . . . . . . . . Escape Stasis . | . . . . . . . . . . Rewire . | . . . . . . . . . . Trap . | . . . . . . . . . . Miscellaneous . | . . . . . . . . . . Route ------- -11/Scrapyard -10/Materials (discovered 5 exits: *Mat x3 / *Min / [*Sub]) -10/Mines (discovered 3 exits: *Mat x2 / *Exi) -10/Exiles (discovered 2 exits: *Min x2) -9/Mines -8/Materials (discovered 3 exits: *Fac x3) -7/Factory -7/Lower Caves -7/Lower Caves (discovered 2 exits: Fac / *Dat) -7/Data Miner (discovered 1 exit: [*Pro]) History --------- Turn | Location | Event 9 | -11/Scrapyard | Discovered new exit (range 14) 120 | -11/Scrapyard | Entered Materials 121 | -10/Materials | Met a group of wandering Federalists 302 | -10/Materials | Discovered new exit (range 5) 307 | -10/Materials | Build established: Mutant 394 | -10/Materials | Discovered new exit (range 16) 429 | -10/Materials | Discovered new exit (range 15) 668 | -10/Materials | Discovered new exit (range 8) 864 | -10/Materials | Discovered new exit (range 9) 936 | -10/Materials | Loaded intel: 1 repair station location 982 | -10/Materials | Learned location of 1 exit from Storage 1017 | -10/Materials | Learned 2 Mines zone layouts 1043 | -10/Materials | Learned location of 3 exits from Materials 1060 | -10/Materials | Learned Storage stockpile data 1068 | -10/Materials | Identified exit to Mines 1068 | -10/Materials | Identified exit to Materials 1069 | -10/Materials | Learned Storage terminal intel 1078 | -10/Materials | Learned location of 2 exits from Materials 1095 | -10/Materials | Learned location of 2 exits from Mines 1121 | -10/Materials | Learned location of 2 exits from Subcaves 1235 | -10/Materials | Entered Mines 1265 | -10/Mines | Received a Rocket Launcher from a helpful Derelict 1588 | -10/Mines | Learned location of Storage (-9) 1636 | -10/Mines | Met a Derelict shopkeep closing up shop 1688 | -10/Mines | Learned location of 1 exit from Materials 1809 | -10/Mines | Core integrity fell below 50% 1972 | -10/Mines | Deemed a non-threat by the Exiles lab entrance 1972 | -10/Mines | Discovered new exit (range 5) 1981 | -10/Mines | Entered Exiles 1982 | -10/Exiles | Identified exit to Mines 2020 | -10/Exiles | Met 8R-AWN 2049 | -10/Exiles | Met EX-HEX 2126 | -10/Exiles | Met EX-DEC 2152 | -10/Exiles | Learned location of Zion (-6) 2280 | -10/Exiles | Met EX-BIN 2365 | -10/Exiles | Aligned with FarCom system 2366 | -10/Exiles | Given EX-Vault access code 2403 | -10/Exiles | Opened EX-Vault 2415 | -10/Exiles | Found PSU Rigger 2423 | -10/Exiles | Found Cloak of Protection 2434 | -10/Exiles | Found Chronowheel 2467 | -10/Exiles | Warned to stay clear of 0b10 Research branches 2474 | -10/Exiles | Exiles lab attacked by MAIN.C 2595 | -10/Exiles | Stole three prototypes: Cloak of Protection, PSU Rigger, Chronowheel 2595 | -10/Exiles | Entered Mines 2604 | -9/Mines | Found the Drone Emporium 2614 | -9/Mines | Found Prototype Device 2615 | -9/Mines | Identified Thief Drone Bay 2908 | -9/Mines | Assembled infested the area 2913 | -9/Mines | Assisted by a Guerilla fighting off Assembled 3179 | -9/Mines | Discovered new exit (range 15) 3226 | -9/Mines | Entered Materials 3226 | -8/Materials | Accompanied by 1 ally 3226 | -8/Materials | Evolved 4 slots: Propulsion x1, Utility x2, Weapon x1 3227 | -8/Materials | Identified exit to Factory 3231 | -8/Materials | Led the pair of lost Derelicts to an unsafe place 3560 | -8/Materials | Central database locked down 3692 | -8/Materials | Build established: Scavenger-Skirmisher 3996 | -8/Materials | Learned location of 1 exit from Lower Caves 4110 | -8/Materials | Learned Factory fabricator intel 4151 | -8/Materials | Learned location of 1 exit from Lower Caves 4184 | -8/Materials | Learned location of 1 exit from Lower Caves 4247 | -8/Materials | Learned Factory security intel 4324 | -8/Materials | Learned Storage stockpile data 4429 | -8/Materials | Entered Factory 4429 | -7/Factory | Evolved 2 slots: Utility x2 4431 | -7/Factory | Loaded intel: 6 fabricator locations 4431 | -7/Factory | FarCom data flow suspended 4541 | -7/Factory | Discovered new exit (range 9) 4566 | -7/Factory | Identified exit to Lower Caves 4651 | -7/Factory | Entered Lower Caves 4652 | -7/Lower Caves | Identified exit to Lower Caves 4746 | -7/Lower Caves | Learned Factory stockpile data 4767 | -7/Lower Caves | Encountered a Warlord checkpoint 4862 | -7/Lower Caves | Attracted the attention of an 0b10 checkpoint 4968 | -7/Lower Caves | Entered another Lower Caves area 4969 | -7/Lower Caves | Identified exit to Data Miner 4969 | -7/Lower Caves | Identified exit to Factory 5193 | -7/Lower Caves | Destroyed 10 combat bots 5198 | -7/Lower Caves | Lost 5 parts (1p2n2u) 5336 | -7/Lower Caves | Learned Factory security intel 5413 | -7/Lower Caves | Build established: Tank 5595 | -7/Lower Caves | Lost 3 parts (1n1u1w) 5840 | -7/Lower Caves | Spotted B-75 Beast 5912 | -7/Lower Caves | Core integrity fell below 50% 5932 | -7/Lower Caves | Destroyed B-75 Beast 5947 | -7/Lower Caves | Lost 3 parts (1n1u1w) 6013 | -7/Lower Caves | Encountered a Master Thief 6014 | -7/Lower Caves | Encountered a Master Thief 6015 | -7/Lower Caves | Encountered a Master Thief 6016 | -7/Lower Caves | Encountered a Master Thief 6016 | -7/Lower Caves | Arm. Huge Wheel stolen by Master Thief 6018 | -7/Lower Caves | Imp. Utility Shielding stolen by Master Thief 6018 | -7/Lower Caves | Deuterium Engine stolen by Master Thief 6057 | -7/Lower Caves | Lost 3 parts (3u) 6348 | -7/Lower Caves | Build established: Hacker-Skirmisher 6562 | -7/Lower Caves | Entered Data Miner 6565 | -7/Data Miner | Discovered new exit (range 6) 6575 | -7/Data Miner | Met Data Miner 6586 | -7/Data Miner | Learned location of Section 7 (-3) 6586 | -7/Data Miner | Acquired the access code to Warlord's prototype stash 6595 | -7/Data Miner | Received God Mode back door access code from Data Miner 6861 | -7/Data Miner | Build established: Hacker-Mutant 6999 | -7/Data Miner | Destroyed Data Miner 7000 | -7/Data Miner | Data Conduit disabled 7003 | -7/Data Miner | Found Prototype Hackware 7101 | -7/Data Miner | Identified System Mapper 7123 | -7/Data Miner | Core integrity fell below 20% 7132 | -7/Data Miner | Destroyed by Enhanced Grunt with Neutron Cannon Last Messages --------------- 07009_ Acquired Thief Drone Bay. 07011_ Thief Drone released from Thief Drone Bay. 07016_ Chain reaction triggered in Mak. Power Source. 07016_ Thief Drone destroyed. 07028_ System corrupted: Matter fused (-9). 07086_ Enhanced Grunt Lyr. Medium Armor Plating severed. 07088_ Enhanced Grunt Prototype Energy Cannon severed. 07094_ Mak. Axe destroyed. 07097_ Acquired Prototype Energy Cannon. 07097_ Identified Neutron Cannon. 07098_ #VWK|JLBZ0NZKAPWACKK8LQ<%&G0GISVTTM:P